fUSD/lending_fUSD_20260408
["ID","MTS","AMOUNT","RATE_DAILY","PERIOD"]
[420063362,1775644250149,-500.0,0.00013425,2]
[420063363,1775644250159,-500.0,0.00013425,2]
[420063364,1775644250170,-500.0,0.00013425,2]
[420063365,1775644250180,-500.0,0.00013425,2]
[420063366,1775644250191,-500.0,0.00013425,2]
[420063367,1775644250202,-500.0,0.00013425,2]
[420063368,1775644250212,-294.91635494,0.00013425,2]
[420063369,1775644250223,-500.0,0.00013425,2]
[420063370,1775644250233,-500.0,0.00013425,2]
[420063371,1775644250244,-500.0,0.00013425,2]
[420063372,1775644250255,-500.0,0.00013425,2]
[420063373,1775644250265,-500.0,0.00013425,2]
[420063374,1775644250277,-500.0,0.00013425,2]
[420063375,1775644250288,-500.0,0.00013425,2]
[420063376,1775644250299,-500.0,0.00013425,2]
[420063377,1775644250310,-500.0,0.00013425,2]
[420063378,1775644250321,-500.0,0.00013425,2]
[420063379,1775644250332,-330.0,0.00013425,2]
[420063380,1775644250342,-1000.0,0.000135,2]
[420063381,1775644250353,-4609.0,0.00013563,2]
[420063382,1775644250364,-1252.0,0.00013563,2]
[420063383,1775644250374,-1152.0,0.00013563,2]
[420063384,1775644250385,-1838.18,0.00013564,2]
[420063385,1775644250396,-329.34,0.00013598,2]
[420063386,1775644250406,-299.37,0.00013632,2]
[420063387,1775644250417,-500.0,0.00013698,2]
[420063388,1775644250428,-483.48,0.00013698,2]
[420063389,1775644250439,-166.66,0.00013699,2]
[420063390,1775644250449,-2494.97,0.00013699,2]
[420063391,1775644250460,-3309.45,0.00013699,2]
[420063392,1775644250471,-151.0,0.00013699,2]
[420063393,1775644250481,-151.0,0.00013699,2]
[420063394,1775644250491,-151.0,0.00013699,2]
[420063395,1775644250502,-294.405308,0.00013699,2]
[420063396,1775644250513,-294.405308,0.00013699,2]
[420063397,1775644250523,-708.249084,0.00013699,2]
[420063398,1775644250533,-294.405308,0.00013699,2]
[420063399,1775644250544,-708.249084,0.00013699,2]
[420063400,1775644250554,-294.405308,0.00013699,2]
[420063401,1775644250565,-708.249084,0.00013699,2]
[420063402,1775644250576,-708.249084,0.00013699,2]
[420063403,1775644250586,-151.0,0.00013699,2]
[420063404,1775644250596,-151.0,0.00013699,2]
[420063405,1775644250607,-713.526214,0.00013699,2]
[420063406,1775644250616,-713.526214,0.00013699,2]
[420063407,1775644250627,-441.161464,0.00013699,2]
[420063408,1775644250637,-713.526214,0.00013699,2]
[420063409,1775644250648,-441.161464,0.00013699,2]
[420063410,1775644250658,-713.526214,0.00013699,2]
[420063411,1775644250668,-151.0,0.00013699,2]
[420063412,1775644250679,-441.161464,0.00013699,2]
[420063413,1775644250690,-1821.34482224,0.00013699,2]
[420063414,1775644251982,-7865.49713876,0.00013699,2]
[420063415,1775644251993,-151.0,0.00013699,2]
[420063416,1775644252003,-909.71844,0.00013699,2]
[420063417,1775644252014,-441.161464,0.00013699,2]
[420063418,1775644252024,-110.24497333,0.00013699,2]
[420063419,1775644252036,-2069.28889387,0.00013699,2]
[420063420,1775644252291,-565.6000001,0.00013699,2]
[420063421,1775644252303,-506.5681281,0.00013699,2]
[420063422,1775644252315,-4868.7298457,0.00013699,2]
[420063423,1775644252327,-1261.267356,0.00013699,2]
[420063424,1775644252347,-305.1427639,0.00013699,2]
[420063425,1775644252357,-909.71844,0.00013699,2]
[420063426,1775644252367,-9686.841961,0.00013699,2]
[420063427,1775644252377,-581.67825055,0.00013699,2]
[420063428,1775644279718,-10000.01,9.266e-05,2]
[420063429,1775644279925,-10000.01,9.266e-05,2]
[420063430,1775644280029,-10000.01,9.266e-05,2]
[420063431,1775644288587,-10000.01,9.266e-05,2]
[420063432,1775644288657,-10000.01,9.266e-05,2]
[420063433,1775644288693,-10000.01,9.266e-05,2]
[420063434,1775644289913,-10000.01,9.266e-05,2]
[420063435,1775644290154,-10000.01,9.266e-05,2]
[420063436,1775644290298,-10000.01,9.266e-05,2]
[420063437,1775644290423,-10000.01,9.266e-05,2]
[420063438,1775644290540,-283.0,9.266e-05,2]
[420063439,1775644290578,-9434.01,9.266e-05,2]
[420063440,1775644290649,-10000.01,9.266e-05,2]
[420063441,1775644290782,-10000.01,9.266e-05,2]
[420063442,1775644290901,-10000.01,9.266e-05,2]
[420063443,1775644291033,-10000.01,9.266e-05,2]
[420063444,1775644295332,-10000.01,9.266e-05,2]
[420063445,1775644295447,-10000.01,9.266e-05,2]
[420063446,1775644295564,-10000.01,9.266e-05,2]
[420063447,1775644295642,-10000.01,9.266e-05,2]
[420063448,1775644295743,-10000.01,9.266e-05,2]
[420063449,1775644295861,-10000.01,9.266e-05,2]
[420063450,1775644295967,-10000.01,9.266e-05,2]
[420063451,1775644296102,-10000.01,9.266e-05,2]
[420063452,1775644296224,-10000.01,9.266e-05,2]
[420063453,1775644296393,-10000.01,9.266e-05,2]
[420063454,1775644304281,-1000.0,9.266e-05,2]
[420063455,1775644304655,-1000.0,9.266e-05,2]
[420063456,1775644304999,-1000.0,9.266e-05,2]
[420063457,1775644305355,-1000.0,9.266e-05,2]
[420063458,1775644305775,-1000.0,9.266e-05,2]
[420063459,1775644306419,-1000.0,9.266e-05,2]
[420063460,1775644306610,-1000.0,9.266e-05,2]
[420063461,1775644306999,-1000.0,9.266e-05,2]
[420063462,1775644307314,-1000.0,9.266e-05,2]
[420063463,1775644308111,-1000.0,9.266e-05,2]
[420063464,1775644308485,-1000.0,9.266e-05,2]
[420063465,1775644310298,-1000.0,9.266e-05,2]
[420063466,1775644310339,-1000.0,9.266e-05,2]
[420063467,1775644310381,-1000.0,9.266e-05,2]
[420063468,1775644310542,-1000.0,9.266e-05,2]
[420063469,1775644310657,-1000.0,9.266e-05,2]
[420063470,1775644310740,-1000.0,9.266e-05,2]
[420063471,1775644310818,-1000.0,9.266e-05,2]
[420063472,1775644311168,-1000.0,9.266e-05,2]
[420063473,1775644311523,-1000.0,9.266e-05,2]
[420063474,1775644311991,-1000.0,9.266e-05,2]
[420063475,1775644313965,-10000.01,9.266e-05,2]
[420063476,1775644314141,-10000.01,9.266e-05,2]
[420063477,1775644314280,-10000.01,9.266e-05,2]
[420063478,1775644314408,-10000.01,9.266e-05,2]
[420063479,1775644314566,-10000.01,9.266e-05,2]
[420063480,1775644314709,-10000.01,9.266e-05,2]
[420063481,1775644314831,-10000.01,9.266e-05,2]
[420063482,1775644314992,-10000.01,9.266e-05,2]
[420063483,1775644315526,-1000.0,9.266e-05,2]
[420063484,1775644316233,-1000.0,9.266e-05,2]
[420063485,1775644316380,-1000.0,9.266e-05,2]
[420063486,1775644316788,-500.0,9.265e-05,2]
[420063487,1775644316818,-500.0,9.266e-05,2]
[420063488,1775644317203,-1000.0,9.266e-05,2]
[420063489,1775644317526,-1000.0,9.266e-05,2]
[420063490,1775644317918,-1000.0,9.266e-05,2]
[420063491,1775644318332,-1000.0,9.266e-05,2]
[420063492,1775644318698,-1000.0,9.266e-05,2]
[420063493,1775644319096,-1000.0,9.266e-05,2]
[420063494,1775644319924,-10000.01,9.266e-05,2]
[420063495,1775644327308,153.0,9.266e-05,3]
[420063496,1775644328191,-300.0,9.265e-05,2]
[420063497,1775644328234,-9400.01,9.266e-05,2]
[420063498,1775644328531,-10000.01,9.266e-05,2]
[420063499,1775644328665,-10000.01,9.266e-05,2]
[420063500,1775644328760,-10000.01,9.266e-05,2]
[420063501,1775644328869,-10000.01,9.266e-05,2]
[420063502,1775644328989,-10000.01,9.266e-05,2]
[420063503,1775644329092,-10000.01,9.266e-05,2]
[420063504,1775644366718,-1000.0,9.166e-05,2]
[420063505,1775644371826,-250.0,9.166e-05,2]
[420063506,1775644375241,-250.0,9.166e-05,2]
[420063507,1775644386941,153.0,9.166e-05,3]
[420063508,1775644389723,951.284395,7.945e-05,2]
[420063509,1775644452344,153.0,7.945e-05,3]
[420063510,1775644474824,1152.33695723,9.265e-05,3]
[420063511,1775644474879,1152.33695723,9.265e-05,3]
[420063512,1775644514084,158.0,9.265e-05,3]
[420063513,1775644522513,155.0,9.265e-05,3]
[420063514,1775644566038,159.0,9.265e-05,3]
[420063515,1775644613118,4048.725605,8.351e-05,2]
[420063516,1775644613144,1963.084395,8.351e-05,2]
[420063517,1775644627462,159.0,9.265e-05,3]
[420063518,1775644636079,500.0,8.316e-05,2]
[420063519,1775644666905,200.0,8.316e-05,2]
[420063520,1775644685330,159.0,9.265e-05,3]
[420063521,1775644747973,159.0,9.265e-05,3]
[420063522,1775644756570,4300.01,8.287e-05,2]
[420063523,1775644756596,5000.01,8.287e-05,2]
[420063524,1775644756629,4093.95,8.287e-05,2]
[420063525,1775644811291,157.0,9.265e-05,3]
[420063526,1775644824588,-277.0,8.855e-05,2]
[420063527,1775644824614,-250.0,8.855e-05,2]
[420063528,1775644824640,-5000.0,8.855e-05,2]
[420063529,1775644824665,-4473.0,8.855e-05,2]
[420063530,1775644825698,-10000.0,8.855e-05,2]
[420063531,1775644826783,-10000.0,8.855e-05,2]
[420063532,1775644827655,-473.860186,8.855e-05,2]
[420063533,1775644827681,-378.78020416,8.88e-05,2]
[420063534,1775644827707,-200.0,8.9e-05,2]
[420063535,1775644841085,-5000.0,8.932e-05,2]
[420063536,1775644841110,-1200.0,8.98e-05,2]
[420063537,1775644841133,-300.0,8.98e-05,2]
[420063538,1775644867086,156.0,9.265e-05,3]
[420063540,1775644926580,155.0,9.265e-05,3]
[420063541,1775644926677,176.4,6.689e-05,2]
[420063542,1775644926743,176.4,7.804e-05,2]
[420063543,1775644932932,3277.8,8.332e-05,2]
[420063544,1775644986505,155.0,9.265e-05,3]
[420063545,1775644989184,166.7,8.484e-05,2]
[420063546,1775645031161,-176.4,8.919e-05,2]
[420063547,1775645031186,-278.0,8.919e-05,2]
[420063548,1775645046945,155.0,9.265e-05,3]
[420063549,1775645064151,1852.42,8.302e-05,2]
[420063550,1775645105360,155.0,9.265e-05,3]
[420063551,1775645106167,155.0,9.265e-05,3]
[420063552,1775645113968,-350.22732689,8.919e-05,2]
[420063553,1775645113994,-278.0,8.919e-05,2]
[420063554,1775645114018,-202.7942291,8.996e-05,2]
[420063555,1775645124414,-1000.0,9.072e-05,2]
[420063556,1775645125940,-113.66468786,9.072e-05,2]
[420063557,1775645125965,-355.96457812,9.072e-05,2]
[420063558,1775645125988,-530.37073402,9.072e-05,2]
[420063559,1775645126084,564.66,8.278e-05,2]
[420063560,1775645127018,-1000.0,9.072e-05,2]
[420063561,1775645127877,-1000.0,9.072e-05,2]
[420063562,1775645179508,296.41,8.248e-05,2]
[420063563,1775645179700,296.41,8.706e-05,2]
[420063564,1775645264646,5000.01,8.216e-05,2]
[420063565,1775645264674,5000.01,8.216e-05,2]
[420063566,1775645264699,8842.53,8.216e-05,2]
[420063567,1775645264729,20256.55,8.216e-05,2]
[420063568,1775645335298,695.9201,8.999e-05,2]
[420063569,1775645341779,4304.0899,8.999e-05,2]
[420063570,1775645341803,5000.01,8.999e-05,2]
[420063571,1775645344603,-1200.0,8.998e-05,2]
[420063572,1775645347480,-279.0,8.998e-05,2]
[420063573,1775645356612,-1448.335605,8.999e-05,2]
[420063574,1775645356709,-5000.01,8.999e-05,2]
[420063575,1775645359640,-5000.01,8.999e-05,2]
[420063576,1775645359728,-5000.01,8.999e-05,2]
[420063577,1775645363403,-5000.01,8.999e-05,2]
[420063578,1775645363422,-5000.01,8.999e-05,2]
[420063579,1775645365661,-5000.01,8.999e-05,2]
[420063580,1775645365751,-5000.01,8.999e-05,2]
[420063581,1775645368845,-5000.01,8.999e-05,2]
[420063582,1775645369118,-5000.01,8.999e-05,2]
[420063583,1775645371760,-5000.01,8.999e-05,2]
[420063584,1775645371887,-5000.01,8.999e-05,2]
[420063585,1775645374826,-1000.0,8.999e-05,2]
[420063586,1775645374978,-5000.01,8.999e-05,2]
[420063587,1775645375159,-1000.0,8.999e-05,2]
[420063588,1775645375345,-904.025795,8.999e-05,2]
[420063589,1775645386132,3191.95841,8.999e-05,2]
[420063590,1775645386159,5000.01,8.999e-05,2]
[420063591,1775645386185,5000.01,8.999e-05,2]
[420063593,1775645401072,-1000.0,8.999e-05,2]
[420063594,1775645402232,-300.0,8.998e-05,2]
[420063595,1775645402257,-300.0,8.998e-05,2]
[420063596,1775645402281,-400.0,8.998e-05,2]
[420063597,1775645403061,-800.0,8.998e-05,2]
[420063598,1775645403085,-200.0,8.998e-05,2]
[420063599,1775645403366,-100.0,8.998e-05,2]
[420063600,1775645403392,-900.0,8.999e-05,2]
[420063601,1775645403536,-1000.0,8.999e-05,2]
[420063602,1775645403975,-1000.0,8.999e-05,2]
[420063603,1775645404283,-1000.0,8.999e-05,2]
[420063604,1775645404610,-1000.0,8.999e-05,2]
[420063605,1775645405341,-1000.0,8.999e-05,2]
[420063606,1775645405682,-1000.0,8.999e-05,2]
[420063607,1775645406092,-1000.0,8.999e-05,2]
[420063608,1775645406508,-1000.0,8.999e-05,2]
[420063609,1775645406898,-1000.0,8.999e-05,2]
[420063610,1775645407243,-279.0,8.999e-05,2]
[420063611,1775645407268,-721.0,8.999e-05,2]
[420063612,1775645407661,-1000.0,8.999e-05,2]
[420063614,1775645409425,-1000.0,8.999e-05,2]
[420063615,1775645409463,-1000.0,8.999e-05,2]
[420063616,1775645409503,-1000.0,8.999e-05,2]
[420063617,1775645409541,-1000.0,8.999e-05,2]
[420063618,1775645409582,-1000.0,8.999e-05,2]
[420063619,1775645412093,-1000.0,8.999e-05,2]
[420063620,1775645413002,-1000.0,8.999e-05,2]
[420063621,1775645413401,-1000.0,8.999e-05,2]
[420063622,1775645413806,-1000.0,8.999e-05,2]
[420063623,1775645414222,-1000.0,8.999e-05,2]
[420063624,1775645414619,-1000.0,8.999e-05,2]
[420063625,1775645415020,-1000.0,8.999e-05,2]
[420063626,1775645415350,-1000.0,8.999e-05,2]
[420063627,1775645415793,-1000.0,8.999e-05,2]
[420063628,1775645416198,-1000.0,8.999e-05,2]
[420063629,1775645417339,-1000.0,8.999e-05,2]
[420063630,1775645418119,-1000.0,8.999e-05,2]
[420063631,1775645418522,-1000.0,8.999e-05,2]
[420063632,1775645421149,-1000.0,8.999e-05,2]
[420063633,1775645421895,9000.95,8.169e-05,2]
[420063634,1775645425517,-1000.0,8.999e-05,2]
[420063635,1775645426329,-1000.0,8.999e-05,2]
[420063636,1775645427168,-1000.0,8.999e-05,2]
[420063637,1775645427952,-1000.0,8.999e-05,2]
[420063641,1775645432930,-380983.71852864,8.999e-05,2]
[420063642,1775645432943,-128461.70975054,8.999e-05,2]
[420063643,1775645432955,-120113.26431117,8.999e-05,2]
[420063644,1775645432967,-4878.70957724,8.999e-05,2]
[420063645,1775645432987,-881.86849656,8.999e-05,2]
[420063646,1775645432998,-4377.09365184,8.999e-05,2]
[420063647,1775645433026,-4447.10351561,8.999e-05,2]
[420063648,1775645433038,-789.06159669,8.999e-05,2]
[420063649,1775645433272,2000.0,8.219e-05,2]
[420063650,1775645434156,-1000.0,8.999e-05,2]
[420063652,1775645437700,-68000.00000009,8.999e-05,2]
[420063653,1775645437712,-1308.34790235,8.999e-05,2]
[420063654,1775645437838,-489.15576,8.999e-05,2]
[420063656,1775645437850,-1335.68020852,8.999e-05,2]
[420063657,1775645437907,-517.8,8.999e-05,2]
[420063660,1775645441915,-193.27662501,8.998e-05,2]
[420063661,1775645441926,-220.08744301,8.998e-05,2]
[420063662,1775645441937,-500.0,8.998e-05,2]
[420063663,1775645441947,-345.67122519,8.998e-05,2]
[420063664,1775645441958,-500.0,8.998e-05,2]
[420063665,1775645441968,-381.93618224,8.998e-05,2]
[420063666,1775645441979,-1274.40893981,8.999e-05,2]
[420063667,1775645442113,-732329.09935094,8.999e-05,2]
[420063668,1775645442124,-742.44312524,9.072e-05,2]
[420063669,1775645442135,-5000.0,9.072e-05,2]
[420063670,1775645442146,-309.086314,9.072e-05,2]
[420063671,1775645442156,-150.0,9.072e-05,2]
[420063672,1775645442167,-5000.0,9.075e-05,2]
[420063673,1775645442178,-742.44312523,9.086e-05,2]
[420063674,1775645442189,-300.0,9.094e-05,2]
[420063675,1775645442199,-742.44312523,9.099e-05,2]
[420063676,1775645442210,-9999.99,9.099e-05,2]
[420063677,1775645442220,-299.99,9.099e-05,2]
[420063678,1775645442230,-43419.25,9.099e-05,2]
[420063679,1775645442241,-7611.53,9.099e-05,2]
[420063680,1775645442253,-8227.27,9.099e-05,2]
[420063681,1775645442264,-351.58,9.099e-05,2]
[420063682,1775645442275,-1211.11,9.099e-05,2]
[420063683,1775645442286,-150.99,9.099e-05,2]
[420063685,1775645442296,-4522.12,9.099e-05,2]
[420063687,1775645442307,-150.99,9.099e-05,2]
[420063688,1775645442317,-9999.99,9.099e-05,2]
[420063690,1775645442327,-999.99,9.099e-05,2]
[420063692,1775645442338,-5383.62,9.099e-05,2]
[420063693,1775645442348,-150.0,9.118e-05,2]
[420063694,1775645442359,-150.0,9.119e-05,2]
[420063695,1775645442369,-9999.99,9.119e-05,2]
[420063696,1775645442379,-2075.7383,9.133e-05,2]
[420063697,1775645442389,-150.0,9.142e-05,2]
[420063698,1775645442399,-2500.0,9.143e-05,2]
[420063699,1775645442409,-10000.0,9.151e-05,2]
[420063700,1775645442419,-994.0,9.159e-05,2]
[420063701,1775645442429,-296.41,9.164e-05,2]
[420063702,1775645442441,-150.0,9.165e-05,2]
[420063703,1775645442452,-9564.56198245,9.166e-05,2]
[420063704,1775645442463,-2040.74153116,9.166e-05,2]
[420063705,1775645442474,-10000.0,9.166e-05,2]
[420063706,1775645442484,-762.0,9.175e-05,2]
[420063707,1775645442495,-1414.0,9.178e-05,2]
[420063708,1775645442506,-500.0,9.187e-05,2]
[420063709,1775645442516,-380026.78789659,9.188e-05,2]
[420063710,1775645442527,-1880.0,9.194e-05,2]
[420063711,1775645442536,-1875.0,9.196e-05,2]
[420063712,1775645442547,-486.0,9.199e-05,2]
[420063713,1775645442558,-1302.0,9.212e-05,2]
[420063714,1775645442568,-1355.0,9.214e-05,2]
[420063715,1775645442579,-910.0,9.218e-05,2]
[420063716,1775645442589,-21376.0,9.233e-05,2]
[420063717,1775645442599,-3464.0,9.233e-05,2]
[420063719,1775645442610,-3900.0,9.233e-05,2]
[420063720,1775645442620,-905.0,9.236e-05,2]
[420063722,1775645442630,-500.0,9.243e-05,2]
[420063723,1775645442641,-500.0,9.243e-05,2]
[420063724,1775645442651,-501.73893264,9.243e-05,2]
[420063725,1775645442662,-500.0,9.243e-05,2]
[420063726,1775645442673,-550.3869963,9.243e-05,2]
[420063727,1775645442684,-500.0,9.243e-05,2]
[420063728,1775645442694,-500.0,9.243e-05,2]
[420063730,1775645442705,-500.0,9.243e-05,2]
[420063731,1775645442716,-500.0,9.243e-05,2]
[420063732,1775645442726,-500.0,9.243e-05,2]
[420063733,1775645442736,-500.0,9.243e-05,2]
[420063734,1775645442748,-500.0,9.243e-05,2]
[420063735,1775645442758,-500.0,9.243e-05,2]
[420063736,1775645442768,-500.0,9.243e-05,2]
[420063737,1775645442778,-500.0,9.243e-05,2]
[420063738,1775645442788,-2000.0,9.247e-05,2]
[420063739,1775645442798,-177.0,9.254e-05,2]
[420063740,1775645442808,-151.0,9.263e-05,2]
[420063741,1775645442818,-151.0,9.263e-05,2]
[420063742,1775645442829,-602.8020892,9.264e-05,2]
[420063743,1775645442839,-28566.32715686,9.265e-05,2]
[420063744,1775645442849,-347395.476475,9.266e-05,2]
[420063745,1775645442861,-33041.7805,9.266e-05,2]
[420063746,1775645442871,-2500000.0,9.266e-05,2]
[420063747,1775645442880,-332.0,9.312e-05,2]
[420063748,1775645442892,-197.25964234,9.312e-05,2]
[420063749,1775645442902,-14234.26557314,9.312e-05,2]
[420063750,1775645442912,-2738.68947605,9.312e-05,2]
[420063751,1775645442922,-291.85837121,9.331e-05,2]
[420063752,1775645442932,-373.0,9.391e-05,2]
[420063754,1775645442942,-457.0,9.409e-05,2]
[420063756,1775645442952,-230.0,9.428e-05,2]
[420063757,1775645442962,-531.0,9.442e-05,2]
[420063758,1775645442973,-500.0,9.461e-05,2]
[420063759,1775645442982,-296.41,9.622e-05,2]
[420063760,1775645442993,-3700.01,9.688e-05,2]
[420063761,1775645443003,-171.0,9.787e-05,2]
[420063762,1775645443014,-1000.0,9.791e-05,2]
[420063763,1775645443025,-500.87166627,9.791e-05,2]
[420063764,1775645443036,-353.62967572,9.791e-05,2]
[420063765,1775645443047,-500.54232895,9.791e-05,2]
[420063766,1775645443058,-1000.0,9.791e-05,2]
[420063767,1775645443068,-1000.0,9.791e-05,2]
[420063768,1775645443079,-1000.0,9.791e-05,2]
[420063769,1775645443089,-668.77267311,9.791e-05,2]
[420063770,1775645443100,-424.0,9.806e-05,2]
[420063771,1775645443112,-193.0,9.811e-05,2]
[420063772,1775645443124,-190.0,9.826e-05,2]
[420063773,1775645443134,-373.0,9.845e-05,2]
[420063774,1775645443145,-206.0,9.865e-05,2]
[420063775,1775645443155,-212.0,9.884e-05,2]
[420063776,1775645443167,-420.0,9.898e-05,2]
[420063777,1775645443178,-420.0,9.898e-05,2]
[420063778,1775645443190,-1680.0,9.898e-05,2]
[420063779,1775645443201,-5000.0,9.899e-05,2]
[420063780,1775645443212,-196.0,9.904e-05,2]
[420063781,1775645443223,-5000.0,9.979e-05,2]
[420063782,1775645443234,-250.0,9.979e-05,2]
[420063783,1775645443245,-250.0,9.979e-05,2]
[420063784,1775645443256,-5000.0,9.979e-05,2]
[420063785,1775645443267,-468.31950945,0.0001,2]
[420063786,1775645443279,-213.96102873,0.0001,2]
[420063787,1775645443289,-151.0,0.0001,2]
[420063788,1775645443300,-151.0,0.0001,2]
[420063789,1775645443312,-151.0,0.0001,2]
[420063790,1775645443323,-151.0,0.0001,2]
[420063791,1775645443334,-151.0,0.0001,2]
[420063792,1775645443345,-500.0,0.0001,2]
[420063793,1775645443357,-151.0,0.0001,2]
[420063794,1775645443368,-500.0,0.0001,2]
[420063795,1775645443379,-151.0,0.0001,2]
[420063796,1775645443390,-500.0,0.0001,2]
[420063797,1775645443401,-151.0,0.0001,2]
[420063798,1775645443412,-500.0,0.0001,2]
[420063799,1775645443422,-151.0,0.0001,2]
[420063800,1775645443433,-500.0,0.0001,2]
[420063801,1775645443445,-151.0,0.0001,2]
[420063802,1775645443456,-500.0,0.0001,2]
[420063803,1775645443467,-151.0,0.0001,2]
[420063804,1775645443477,-500.0,0.0001,2]
[420063805,1775645443488,-151.0,0.0001,2]
[420063806,1775645443499,-500.0,0.0001,2]
[420063807,1775645443510,-151.0,0.0001,2]
[420063808,1775645443520,-500.0,0.0001,2]
[420063809,1775645443530,-151.0,0.0001,2]
[420063810,1775645443540,-500.0,0.0001,2]
[420063811,1775645443551,-151.0,0.0001,2]
[420063813,1775645443561,-500.0,0.0001,2]
[420063815,1775645443571,-500.0,0.0001,2]
[420063817,1775645443581,-500.0,0.0001,2]
[420063819,1775645443591,-500.0,0.0001,2]
[420063821,1775645443602,-500.0,0.0001,2]
[420063823,1775645443612,-151.0,0.0001,2]
[420063825,1775645443623,-151.0,0.0001,2]
[420063827,1775645443634,-151.0,0.0001,2]
[420063829,1775645443645,-151.0,0.0001,2]
[420063831,1775645443655,-151.0,0.0001,2]
[420063833,1775645443666,-151.0,0.0001,2]
[420063835,1775645443677,-500.0,0.0001,2]
[420063837,1775645443687,-151.0,0.0001,2]
[420063839,1775645443698,-500.0,0.0001,2]
[420063841,1775645443709,-151.0,0.0001,2]
[420063843,1775645443720,-151.0,0.0001,2]
[420063845,1775645443731,-500.0,0.0001,2]
[420063847,1775645443742,-151.0,0.0001,2]
[420063849,1775645443754,-500.0,0.0001,2]
[420063851,1775645443764,-151.0,0.0001,2]
[420063853,1775645443775,-500.0,0.0001,2]
[420063854,1775645443786,-151.0,0.0001,2]
[420063855,1775645443797,-500.0,0.0001,2]
[420063856,1775645443808,-151.0,0.0001,2]
[420063857,1775645443819,-500.0,0.0001,2]
[420063858,1775645443831,-151.0,0.0001,2]
[420063859,1775645443842,-500.0,0.0001,2]
[420063860,1775645443854,-151.0,0.0001,2]
[420063862,1775645444335,-500.0,0.0001,2]
[420063863,1775645444345,-151.0,0.0001,2]
[420063864,1775645444355,-500.0,0.0001,2]
[420063865,1775645444366,-151.0,0.0001,2]
[420063866,1775645444377,-500.0,0.0001,2]
[420063867,1775645444387,-151.0,0.0001,2]
[420063868,1775645444398,-500.0,0.0001,2]
[420063869,1775645444409,-151.0,0.0001,2]
[420063870,1775645444420,-500.0,0.0001,2]
[420063871,1775645444431,-151.0,0.0001,2]
[420063872,1775645444443,-500.0,0.0001,2]
[420063873,1775645444455,-151.0,0.0001,2]
[420063874,1775645444469,-500.0,0.0001,2]
[420063875,1775645444480,-1199.20597017,0.0001,2]
[420063876,1775645444490,-151.0,0.0001,2]
[420063877,1775645444500,-312.54243251,0.0001,2]
[420063878,1775645444510,-312.54243251,0.0001,2]
[420063879,1775645444520,-312.54243251,0.0001,2]
[420063880,1775645444530,-156.64232712,0.0001,2]
[420063881,1775645444540,-427.30293621,0.0001,2]
[420063882,1775645444550,-427.30293621,0.0001,2]
[420063883,1775645444561,-420.0,0.00010003,2]
[420063884,1775645444571,-176.4,0.00010034,2]
[420063885,1775645444581,-296.41,0.0001008,2]
[420063886,1775645444591,-150.0,0.000101,2]
[420063887,1775645444602,-216.25,0.00010104,2]
[420063888,1775645444614,-158.48,0.00010127,2]
[420063889,1775645444624,-151.0,0.00010127,2]
[420063890,1775645444634,-151.0,0.00010171,2]
[420063891,1775645444644,-151.0,0.00010171,2]
[420063892,1775645444655,-151.0,0.000102,2]
[420063893,1775645444664,-2000.0,0.00010274,2]
[420063894,1775645444675,-1500.0,0.00010338,2]
[420063895,1775645444684,-296.41,0.00010539,2]
[420063896,1775645444694,-151.0,0.00010586,2]
[420063897,1775645444704,-430795.556475,0.00010589,2]
[420063898,1775645444715,-3341.0,0.00010685,2]
[420063899,1775645444726,-1517.45482461,0.00010886,2]
[420063900,1775645444735,-587.0,0.00010888,2]
[420063901,1775645444746,-587.0,0.00010888,2]
[420063902,1775645444756,-2351.0,0.00010888,2]